[Event "Saint Louis Masters"]
[Date "2024.12.03"]
[White "Dudin, Gleb"]
[Black "Caruana, Fabiano"]
[WhiteElo "2506"]
[BlackElo "2805"]
[Round "1.1"]
[Result "0-1"]
[TimeControl "5400+30"]

1. d4 {[%clk 01:30:12] [%emt 00:00:46]} Nf6 {[%clk 01:30:52] [%emt 00:00:08]} 2.
c4 {[%clk 01:30:34] [%emt 00:00:09]} e6 {[%clk 01:31:17] [%emt 00:00:05]} 3. Nc3
{[%clk 01:30:44] [%emt 00:00:19]} d5 {[%clk 01:31:26] [%emt 00:00:22]} 4. Bg5
{[%clk 01:27:47] [%emt 00:03:26]} Nbd7 {[%clk 01:27:02] [%emt 00:04:55]} 5. e3
{[%clk 01:26:46] [%emt 00:01:29]} h6 {[%clk 01:24:40] [%emt 00:02:53]} 6. Bh4
{[%clk 01:27:01] [%emt 00:00:15]} Be7 {[%clk 01:23:32] [%emt 00:01:38]} 7. Qc2
{[%clk 01:23:30] [%emt 00:04:00]} O-O {[%clk 01:19:09] [%emt 00:04:54]} 8. cxd5
{[%clk 01:13:23] [%emt 00:10:36]} exd5 {[%clk 01:19:24] [%emt 00:00:15]} 9. Bd3
{[%clk 01:13:24] [%emt 00:00:29]} c6 {[%clk 01:19:48] [%emt 00:00:07]} 10. Nge2
{[%clk 01:12:09] [%emt 00:01:44]} Re8 {[%clk 01:15:06] [%emt 00:05:13]} 11. a4
{[%clk 01:06:06] [%emt 00:06:33]} Ne4 {[%clk 00:59:22] [%emt 00:16:14]} 12. Bxe7
{[%clk 01:03:41] [%emt 00:02:55]} Qxe7 {[%clk 00:59:40] [%emt 00:00:12]} 13.
Bxe4 {[%clk 01:04:03] [%emt 00:00:08]} dxe4 {[%clk 01:00:07] [%emt 00:00:03]}
14. a5 {[%clk 01:04:19] [%emt 00:00:13]} Nf6 {[%clk 01:00:29] [%emt 00:00:08]}
15. O-O {[%clk 01:00:57] [%emt 00:03:53]} Bf5 {[%clk 01:00:29] [%emt 00:00:30]}
16. Qa4 {[%clk 00:58:29] [%emt 00:02:58]} Rad8 {[%clk 00:53:32] [%emt 00:07:27]}
17. Qa3 {[%clk 00:54:56] [%emt 00:04:02]} Qd7 {[%clk 00:50:58] [%emt 00:03:04]}
18. a6 {[%clk 00:36:55] [%emt 00:18:31]} b6 {[%clk 00:51:09] [%emt 00:00:20]}
19. Qa4 {[%clk 00:34:24] [%emt 00:03:01]} h5 {[%clk 00:38:45] [%emt 00:12:54]}
20. Rfc1 {[%clk 00:28:08] [%emt 00:06:45]} h4 {[%clk 00:38:27] [%emt 00:00:49]}
21. d5 {[%clk 00:06:58] [%emt 00:21:40]} c5 {[%clk 00:37:15] [%emt 00:01:42]}
22. Rd1 {[%clk 00:04:10] [%emt 00:03:17]} h3 {[%clk 00:23:17] [%emt 00:14:28]}
23. Rd2 {[%clk 00:01:23] [%emt 00:03:18]} Qe7 {[%clk 00:21:35] [%emt 00:02:12]}
24. Ng3 {[%clk 00:00:39] [%emt 00:01:13]} Bd7 {[%clk 00:21:19] [%emt 00:00:47]}
25. Qc4 {[%clk 00:00:35] [%emt 00:00:34]} Qe5 {[%clk 00:17:55] [%emt 00:03:54]}
26. d6 {[%clk 00:00:32] [%emt 00:00:32]} hxg2 {[%clk 00:15:42] [%emt 00:02:43]}
27. Nd5 {[%clk 00:00:39] [%emt 00:00:23]} Nxd5 {[%clk 00:11:11] [%emt 00:05:02]}
28. Rxd5 {[%clk 00:00:49] [%emt 00:00:20]} Qxb2 {[%clk 00:11:21] [%emt
00:00:21]} 29. Rad1 {[%clk 00:00:32] [%emt 00:00:47]} Bb5 {[%clk 00:10:39] [%emt
00:01:12]} 0-1

[Site "Europe Echecs"]

[Event "Saint Louis Masters"]
[Date "2024.12.03"]
[White "Robson, Ray"]
[Black "Budisavljevic, Luka"]
[WhiteElo "2700"]
[BlackElo "2501"]
[Round "1.2"]
[Result "1/2-1/2"]
[TimeControl "5400+30"]

1. e4 {[%clk 01:27:12] [%emt 00:03:37]} c5 {[%clk 01:30:57] [%emt 00:00:13]} 2.
Nf3 {[%clk 01:27:27] [%emt 00:00:15]} e6 {[%clk 01:31:19] [%emt 00:00:08]} 3. d4
{[%clk 01:25:34] [%emt 00:02:23]} cxd4 {[%clk 01:31:44] [%emt 00:00:06]} 4. Nxd4
{[%clk 01:25:53] [%emt 00:00:10]} Nf6 {[%clk 01:31:47] [%emt 00:00:27]} 5. Nc3
{[%clk 01:23:09] [%emt 00:03:13]} Nc6 {[%clk 01:32:11] [%emt 00:00:05]} 6. a3
{[%clk 01:22:39] [%emt 00:01:01]} Be7 {[%clk 01:32:29] [%emt 00:00:12]} 7. Nxc6
{[%clk 01:18:47] [%emt 00:04:23]} bxc6 {[%clk 01:32:51] [%emt 00:00:08]} 8. e5
{[%clk 01:18:06] [%emt 00:01:11]} Nd5 {[%clk 01:33:06] [%emt 00:00:15]} 9. Qg4
{[%clk 01:14:21] [%emt 00:04:14]} g6 {[%clk 01:33:00] [%emt 00:00:37]} 10. Bd2
{[%clk 01:05:42] [%emt 00:09:08]} d6 {[%clk 01:25:51] [%emt 00:07:39]} 11. exd6
{[%clk 00:55:55] [%emt 00:10:17]} Bxd6 {[%clk 01:25:32] [%emt 00:00:49]} 12. h4
{[%clk 00:52:59] [%emt 00:03:26]} Be5 {[%clk 01:07:33] [%emt 00:18:30]} 13. h5
{[%clk 00:48:58] [%emt 00:04:30]} Nxc3 {[%clk 00:45:56] [%emt 00:22:08]} 14.
Bxc3 {[%clk 00:45:05] [%emt 00:04:23]} Qf6 {[%clk 00:43:12] [%emt 00:03:15]} 15.
Rh3 {[%clk 00:42:10] [%emt 00:03:24]} Rb8 {[%clk 00:41:26] [%emt 00:02:17]} 16.
O-O-O {[%clk 00:37:05] [%emt 00:05:34]} Bf4+ {[%clk 00:23:28] [%emt 00:18:28]}
17. Kb1 {[%clk 00:29:04] [%emt 00:08:30]} e5 {[%clk 00:23:54] [%emt 00:00:06]}
18. Qf3 {[%clk 00:29:04] [%emt 00:00:29]} Bxh3 {[%clk 00:23:29] [%emt 00:00:56]}
19. Qxh3 {[%clk 00:28:57] [%emt 00:00:36]} O-O {[%clk 00:23:17] [%emt 00:00:42]}
20. g3 {[%clk 00:20:57] [%emt 00:08:29]} Bh6 {[%clk 00:23:38] [%emt 00:00:11]}
21. hxg6 {[%clk 00:20:39] [%emt 00:00:48]} Qxg6 {[%clk 00:23:41] [%emt
00:00:27]} 22. Bd3 {[%clk 00:18:16] [%emt 00:02:52]} e4 {[%clk 00:23:46] [%emt
00:00:26]} 23. Bxe4 {[%clk 00:17:30] [%emt 00:01:16]} f5 {[%clk 00:23:56] [%emt
00:00:21]} 24. Bd3 {[%clk 00:08:30] [%emt 00:09:29]} Bg7 {[%clk 00:24:24] [%emt
00:00:02]} 25. Bc4+ {[%clk 00:06:23] [%emt 00:02:37]} Kh8 {[%clk 00:24:53] [%emt
00:00:01]} 26. Bxg7+ {[%clk 00:06:22] [%emt 00:00:31]} Qxg7 {[%clk 00:25:22]
[%emt 00:00:02]} 27. Bb3 {[%clk 00:06:33] [%emt 00:00:18]} a5 {[%clk 00:24:21]
[%emt 00:01:31]} 28. Qh4 {[%clk 00:04:14] [%emt 00:02:48]} f4 {[%clk 00:22:59]
[%emt 00:01:53]} 29. Qh3 {[%clk 00:04:22] [%emt 00:00:20]} fxg3 {[%clk 00:15:38]
[%emt 00:07:52]} 30. fxg3 {[%clk 00:03:18] [%emt 00:01:34]} Qf6 {[%clk 00:13:09]
[%emt 00:02:59]} 31. Qg4 {[%clk 00:01:57] [%emt 00:01:51]} Rg8 {[%clk 00:06:25]
[%emt 00:07:14]} 32. Qa4 {[%clk 00:01:25] [%emt 00:01:02]} Rg5 {[%clk 00:05:43]
[%emt 00:01:12]} 33. Rd7 {[%clk 00:01:04] [%emt 00:00:51]} Rg7 {[%clk 00:02:07]
[%emt 00:04:06]} 34. Rxg7 {[%clk 00:00:40] [%emt 00:00:55]} Qxg7 {[%clk
00:02:35] [%emt 00:00:01]} 35. Qxa5 {[%clk 00:00:38] [%emt 00:00:32]} Qxg3
{[%clk 00:02:55] [%emt 00:00:10]} 36. Qc5 {[%clk 00:00:52] [%emt 00:00:15]} Rc8
{[%clk 00:02:00] [%emt 00:01:25]} 37. a4 {[%clk 00:01:04] [%emt 00:00:19]} Qg6
{[%clk 00:01:35] [%emt 00:00:55]} 38. a5 {[%clk 00:01:12] [%emt 00:00:22]} Qf6
{[%clk 00:01:34] [%emt 00:00:31]} 39. c3 {[%clk 00:00:33] [%emt 00:01:10]} Re8
{[%clk 00:01:14] [%emt 00:00:50]} 40. Bc4 {[%clk 00:00:39] [%emt 00:00:23]} Re5
{[%clk 00:01:15] [%emt 00:00:28]} 41. Qd4 {[%clk 00:00:37] [%emt 00:00:33]} Re1+
{[%clk 00:01:04] [%emt 00:00:41]} 42. Kc2 {[%clk 00:00:33] [%emt 00:00:34]} Qxd4
{[%clk 00:01:32] [%emt 00:00:02]} 43. cxd4 {[%clk 00:01:00] [%emt 00:00:03]} h5
{[%clk 00:01:20] [%emt 00:00:42]} 44. a6 {[%clk 00:00:45] [%emt 00:00:46]} Ra1
{[%clk 00:00:46] [%emt 00:01:04]} 45. b4 {[%clk 00:00:46] [%emt 00:00:28]} h4
{[%clk 00:00:59] [%emt 00:00:17]} 46. d5 {[%clk 00:00:58] [%emt 00:00:18]} cxd5
{[%clk 00:01:06] [%emt 00:00:23]} 47. Kb2 {[%clk 00:01:04] [%emt 00:00:23]} Ra4
{[%clk 00:01:07] [%emt 00:00:29]} 48. Kb3 {[%clk 00:01:24] [%emt 00:00:10]} Ra1
{[%clk 00:01:28] [%emt 00:00:09]} 49. Kb2 {[%clk 00:01:37] [%emt 00:00:17]} Ra4
{[%clk 00:01:43] [%emt 00:00:15]} 50. Kb3 {[%clk 00:01:56] [%emt 00:00:11]} Ra1
{[%clk 00:02:09] [%emt 00:00:04]} 1/2-1/2

[Site "Europe Echecs"]

[Event "Saint Louis Masters"]
[Date "2024.12.03"]
[White "Ghazarian, Kirk"]
[Black "Sevian, Samuel"]
[WhiteElo "2501"]
[BlackElo "2696"]
[Round "1.3"]
[Result "1/2-1/2"]
[TimeControl "5400+30"]

1. d4 {[%clk 01:30:28] [%emt 00:00:30]} Nf6 {[%clk 01:30:51] [%emt 00:00:10]} 2.
c4 {[%clk 01:30:33] [%emt 00:00:26]} g6 {[%clk 01:30:52] [%emt 00:00:28]} 3. g3
{[%clk 01:30:27] [%emt 00:00:36]} d6 {[%clk 01:26:07] [%emt 00:05:15]} 4. Bg2
{[%clk 01:30:02] [%emt 00:00:54]} c5 {[%clk 01:25:29] [%emt 00:01:08]} 5. dxc5
{[%clk 01:27:23] [%emt 00:03:10]} Qa5+ {[%clk 01:25:07] [%emt 00:00:53]} 6. Nc3
{[%clk 01:21:49] [%emt 00:06:03]} Qxc5 {[%clk 01:25:25] [%emt 00:00:12]} 7. Bd2
{[%clk 01:21:34] [%emt 00:00:46]} Bg7 {[%clk 01:23:44] [%emt 00:02:11]} 8. Rc1
{[%clk 01:21:05] [%emt 00:00:59]} O-O {[%clk 01:22:06] [%emt 00:02:07]} 9. b3
{[%clk 01:18:06] [%emt 00:03:30]} Qb6 {[%clk 01:11:46] [%emt 00:10:49]} 10. Nh3
{[%clk 01:11:57] [%emt 00:06:40]} Bd7 {[%clk 01:07:52] [%emt 00:04:24]} 11. Nf4
{[%clk 01:10:05] [%emt 00:02:21]} Bc6 {[%clk 01:00:05] [%emt 00:08:17]} 12. e4
{[%clk 01:06:18] [%emt 00:04:17]} e6 {[%clk 00:56:26] [%emt 00:04:10]} 13. O-O
{[%clk 01:03:16] [%emt 00:03:31]} Na6 {[%clk 00:52:14] [%emt 00:04:42]} 14. Qe2
{[%clk 00:55:32] [%emt 00:08:14]} Rfd8 {[%clk 00:49:46] [%emt 00:02:59]} 15.
Rfd1 {[%clk 00:55:32] [%emt 00:00:30]} Nc5 {[%clk 00:47:28] [%emt 00:02:48]} 16.
Rb1 {[%clk 00:50:06] [%emt 00:05:56]} a5 {[%clk 00:46:50] [%emt 00:01:08]} 17.
Be3 {[%clk 00:42:11] [%emt 00:08:25]} Qc7 {[%clk 00:45:14] [%emt 00:02:06]} 18.
Bd4 {[%clk 00:35:58] [%emt 00:06:44]} Qe7 {[%clk 00:19:36] [%emt 00:26:08]} 19.
Bxc5 {[%clk 00:26:06] [%emt 00:10:22]} dxc5 {[%clk 00:20:02] [%emt 00:00:05]}
20. e5 {[%clk 00:26:03] [%emt 00:00:32]} Bxg2 {[%clk 00:20:12] [%emt 00:00:20]}
21. Kxg2 {[%clk 00:23:30] [%emt 00:03:03]} Nd7 {[%clk 00:17:58] [%emt 00:02:44]}
22. Nd3 {[%clk 00:23:50] [%emt 00:00:10]} Nb8 {[%clk 00:18:24] [%emt 00:00:05]}
23. Nb5 {[%clk 00:16:33] [%emt 00:07:47]} Nc6 {[%clk 00:18:28] [%emt 00:00:26]}
24. f4 {[%clk 00:16:02] [%emt 00:01:01]} a4 {[%clk 00:18:15] [%emt 00:00:44]}
25. Nf2 {[%clk 00:14:50] [%emt 00:01:42]} axb3 {[%clk 00:16:49] [%emt 00:01:57]}
26. axb3 {[%clk 00:15:02] [%emt 00:00:17]} f6 {[%clk 00:12:14] [%emt 00:05:05]}
27. exf6 {[%clk 00:13:59] [%emt 00:01:32]} Bxf6 {[%clk 00:12:42] [%emt
00:00:02]} 28. Rxd8+ {[%clk 00:13:50] [%emt 00:00:40]} Rxd8 {[%clk 00:13:04]
[%emt 00:00:08]} 29. Rd1 {[%clk 00:12:49] [%emt 00:01:31]} 1/2-1/2

[Site "Europe Echecs"]

[Event "Saint Louis Masters"]
[Date "2024.12.03"]
[White "Shankland, Sam"]
[Black "Hardaway, Brewington"]
[WhiteElo "2672"]
[BlackElo "2499"]
[Round "1.4"]
[Result "1-0"]
[TimeControl "5400+30"]

1. d4 {[%clk 01:30:54] [%emt 00:00:05]} d5 {[%clk 01:30:51] [%emt 00:00:09]} 2.
Nf3 {[%clk 01:31:19] [%emt 00:00:05]} Nf6 {[%clk 01:31:15] [%emt 00:00:06]} 3.
Bf4 {[%clk 01:31:43] [%emt 00:00:06]} c5 {[%clk 01:31:38] [%emt 00:00:07]} 4. e3
{[%clk 01:32:02] [%emt 00:00:12]} Nc6 {[%clk 01:31:57] [%emt 00:00:11]} 5. h3
{[%clk 01:30:07] [%emt 00:02:25]} Qb6 {[%clk 01:31:59] [%emt 00:00:28]} 6. Nc3
{[%clk 01:29:18] [%emt 00:01:19]} c4 {[%clk 01:30:56] [%emt 00:01:33]} 7. Rb1
{[%clk 01:29:13] [%emt 00:00:35]} Qa5 {[%clk 01:28:17] [%emt 00:03:08]} 8. Nd2
{[%clk 01:25:49] [%emt 00:03:54]} Bf5 {[%clk 01:25:46] [%emt 00:03:01]} 9. g4
{[%clk 01:24:49] [%emt 00:01:30]} Bg6 {[%clk 01:18:16] [%emt 00:07:59]} 10. h4
{[%clk 01:22:24] [%emt 00:02:55]} h5 {[%clk 01:15:04] [%emt 00:03:42]} 11. g5
{[%clk 01:22:48] [%emt 00:00:07]} Nd7 {[%clk 01:03:09] [%emt 00:12:25]} 12. Bg2
{[%clk 01:16:48] [%emt 00:06:29]} e6 {[%clk 01:03:09] [%emt 00:00:30]} 13. O-O
{[%clk 01:15:46] [%emt 00:01:32]} Bb4 {[%clk 01:01:15] [%emt 00:02:24]} 14. e4
{[%clk 01:15:39] [%emt 00:00:37]} Nxd4 {[%clk 00:44:58] [%emt 00:16:48]} 15.
exd5 {[%clk 01:02:28] [%emt 00:13:40]} Bxc2 {[%clk 00:43:23] [%emt 00:02:05]}
16. Nxc4 {[%clk 00:58:25] [%emt 00:04:34]} Qc5 {[%clk 00:36:13] [%emt 00:07:40]}
17. Nd6+ {[%clk 00:57:21] [%emt 00:01:34]} Kf8 {[%clk 00:36:33] [%emt 00:00:09]}
18. Nde4 {[%clk 00:42:52] [%emt 00:15:00]} Qc4 {[%clk 00:30:26] [%emt 00:06:37]}
19. Qd2 {[%clk 00:37:52] [%emt 00:05:30]} Bxe4 {[%clk 00:29:31] [%emt 00:01:25]}
20. Bxe4 {[%clk 00:38:11] [%emt 00:00:11]} exd5 {[%clk 00:21:50] [%emt
00:08:10]} 21. Bg2 {[%clk 00:36:23] [%emt 00:02:17]} Bxc3 {[%clk 00:13:11] [%emt
00:09:10]} 22. Bd6+ {[%clk 00:36:30] [%emt 00:00:23]} Kg8 {[%clk 00:13:38] [%emt
00:00:03]} 23. bxc3 {[%clk 00:36:55] [%emt 00:00:05]} Ne2+ {[%clk 00:12:40]
[%emt 00:01:28]} 24. Kh2 {[%clk 00:34:39] [%emt 00:02:46]} Nxc3 {[%clk 00:12:21]
[%emt 00:00:49]} 25. Rxb7 {[%clk 00:24:10] [%emt 00:10:59]} Qc6 {[%clk 00:03:56]
[%emt 00:08:55]} 26. Rxd7 {[%clk 00:24:32] [%emt 00:00:09]} Qxd7 {[%clk
00:04:22] [%emt 00:00:03]} 27. Be5 {[%clk 00:24:47] [%emt 00:00:15]} Rc8 {[%clk
00:02:22] [%emt 00:02:31]} 28. Re1 {[%clk 00:24:29] [%emt 00:00:46]} Qg4 {[%clk
00:00:35] [%emt 00:02:17]} 29. Bxc3 {[%clk 00:23:34] [%emt 00:01:26]} Qxh4+
{[%clk 00:01:01] [%emt 00:00:04]} 30. Kg1 {[%clk 00:23:58] [%emt 00:00:05]} Rxc3
{[%clk 00:00:36] [%emt 00:00:56]} 31. Qxc3 {[%clk 00:23:46] [%emt 00:00:42]}
Qxg5 {[%clk 00:01:01] [%emt 00:00:05]} 32. Re5 {[%clk 00:23:49] [%emt 00:00:26]}
Qg4 {[%clk 00:00:56] [%emt 00:00:35]} 33. Qd3 {[%clk 00:22:19] [%emt 00:02:01]}
g6 {[%clk 00:01:04] [%emt 00:00:22]} 34. Qxd5 {[%clk 00:22:27] [%emt 00:00:21]}
Kg7 {[%clk 00:01:12] [%emt 00:00:22]} 35. Re4 {[%clk 00:22:46] [%emt 00:00:12]}
Qc8 {[%clk 00:01:21] [%emt 00:00:20]} 36. Qd4+ {[%clk 00:23:02] [%emt 00:00:13]}
Kh7 {[%clk 00:00:38] [%emt 00:01:14]} 37. Re7 {[%clk 00:22:39] [%emt 00:00:53]}
Qf5 {[%clk 00:00:59] [%emt 00:00:09]} 38. Qd5 {[%clk 00:22:32] [%emt 00:00:37]}
1-0

[Site "Europe Echecs"]

[Event "Saint Louis Masters"]
[Date "2024.12.03"]
[White "Chandra, Akshat"]
[Black "Saric, Ivan"]
[WhiteElo "2474"]
[BlackElo "2669"]
[Round "1.5"]
[Result "1/2-1/2"]
[TimeControl "5400+30"]

1. Nf3 {[%clk 01:23:27] [%emt 00:07:32]} Nf6 {[%clk 01:30:09] [%emt 00:00:51]}
2. c4 {[%clk 01:23:23] [%emt 00:00:34]} g6 {[%clk 01:30:32] [%emt 00:00:07]} 3.
g3 {[%clk 01:23:42] [%emt 00:00:12]} Bg7 {[%clk 01:30:49] [%emt 00:00:12]} 4.
Bg2 {[%clk 01:24:06] [%emt 00:00:06]} O-O {[%clk 01:30:14] [%emt 00:01:05]} 5.
O-O {[%clk 01:24:31] [%emt 00:00:05]} c6 {[%clk 01:29:49] [%emt 00:00:55]} 6. b3
{[%clk 01:20:43] [%emt 00:04:19]} d6 {[%clk 01:27:37] [%emt 00:02:42]} 7. Bb2
{[%clk 01:19:15] [%emt 00:01:57]} e5 {[%clk 01:27:47] [%emt 00:00:21]} 8. d3
{[%clk 01:18:22] [%emt 00:01:23]} Re8 {[%clk 01:24:21] [%emt 00:03:56]} 9. Nbd2
{[%clk 00:59:42] [%emt 00:19:11]} Nbd7 {[%clk 01:22:39] [%emt 00:02:11]} 10. e4
{[%clk 00:57:46] [%emt 00:02:26]} a5 {[%clk 01:21:52] [%emt 00:01:17]} 11. Re1
{[%clk 00:50:56] [%emt 00:07:20]} b5 {[%clk 01:19:46] [%emt 00:02:36]} 12. a3
{[%clk 00:45:19] [%emt 00:06:07]} Qb6 {[%clk 01:18:50] [%emt 00:01:26]} 13. h3
{[%clk 00:44:13] [%emt 00:01:36]} Nh5 {[%clk 01:14:38] [%emt 00:04:42]} 14. b4
{[%clk 00:30:49] [%emt 00:13:54]} axb4 {[%clk 01:10:39] [%emt 00:04:29]} 15.
axb4 {[%clk 00:28:53] [%emt 00:02:26]} Rxa1 {[%clk 01:04:20] [%emt 00:06:49]}
16. Qxa1 {[%clk 00:28:22] [%emt 00:01:02]} Ba6 {[%clk 01:04:44] [%emt 00:00:06]}
17. cxb5 {[%clk 00:27:54] [%emt 00:00:57]} Bxb5 {[%clk 00:59:55] [%emt
00:05:18]} 18. d4 {[%clk 00:27:49] [%emt 00:00:36]} Bh6 {[%clk 00:41:01] [%emt
00:19:25]} 19. Kh2 {[%clk 00:14:11] [%emt 00:14:06]} Nf8 {[%clk 00:40:22] [%emt
00:01:10]} 20. Qa5 {[%clk 00:10:42] [%emt 00:04:00]} Qxa5 {[%clk 00:34:46] [%emt
00:06:07]} 21. bxa5 {[%clk 00:11:10] [%emt 00:00:01]} exd4 {[%clk 00:34:54]
[%emt 00:00:22]} 22. Bxd4 {[%clk 00:11:26] [%emt 00:00:13]} Ne6 {[%clk 00:35:09]
[%emt 00:00:16]} 23. Bb6 {[%clk 00:10:21] [%emt 00:01:35]} Nf6 {[%clk 00:17:05]
[%emt 00:18:34]} 24. Bf1 {[%clk 00:08:03] [%emt 00:02:48]} Bxf1 {[%clk 00:17:18]
[%emt 00:00:17]} 25. Rxf1 {[%clk 00:08:27] [%emt 00:00:06]} Ra8 {[%clk 00:17:28]
[%emt 00:00:20]} 26. Rd1 {[%clk 00:07:06] [%emt 00:01:51]} Bxd2 {[%clk 00:12:24]
[%emt 00:05:34]} 27. Nxd2 {[%clk 00:07:22] [%emt 00:00:14]} d5 {[%clk 00:09:41]
[%emt 00:03:13]} 28. exd5 {[%clk 00:06:23] [%emt 00:01:29]} cxd5 {[%clk
00:08:29] [%emt 00:01:42]} 29. Nf3 {[%clk 00:05:03] [%emt 00:01:50]} Kf8 {[%clk
00:08:23] [%emt 00:00:36]} 30. Ne5 {[%clk 00:03:21] [%emt 00:02:13]} Ke7 {[%clk
00:08:43] [%emt 00:00:10]} 31. g4 {[%clk 00:03:16] [%emt 00:00:34]} Ke8 {[%clk
00:07:20] [%emt 00:01:52]} 32. f3 {[%clk 00:02:05] [%emt 00:01:41]} g5 {[%clk
00:04:27] [%emt 00:03:23]} 33. Kg3 {[%clk 00:00:48] [%emt 00:01:47]} h5 {[%clk
00:04:07] [%emt 00:00:50]} 34. h4 {[%clk 00:01:16] [%emt 00:00:02]} gxh4+ {[%clk
00:04:27] [%emt 00:00:10]} 35. Kxh4 {[%clk 00:01:42] [%emt 00:00:04]} hxg4
{[%clk 00:04:54] [%emt 00:00:04]} 36. Nxg4 {[%clk 00:01:43] [%emt 00:00:29]} Nd7
{[%clk 00:02:19] [%emt 00:03:05]} 37. Rxd5 {[%clk 00:01:56] [%emt 00:00:17]} Ke7
{[%clk 00:02:46] [%emt 00:00:02]} 38. Kg3 {[%clk 00:00:32] [%emt 00:01:54]} Nxb6
{[%clk 00:01:45] [%emt 00:01:31]} 39. axb6 {[%clk 00:00:58] [%emt 00:00:04]} Rb8
{[%clk 00:02:14] [%emt 00:00:02]} 40. Rb5 {[%clk 00:01:22] [%emt 00:00:05]} Kd6
{[%clk 00:02:32] [%emt 00:00:12]} 41. Ne5 {[%clk 00:01:43] [%emt 00:00:10]} Nd4
{[%clk 00:02:16] [%emt 00:00:46]} 42. Nc4+ {[%clk 00:01:11] [%emt 00:01:01]} Kc6
{[%clk 00:02:39] [%emt 00:00:07]} 43. Rb2 {[%clk 00:01:31] [%emt 00:00:09]} Kc5
{[%clk 00:02:00] [%emt 00:01:12]} 44. Ne5 {[%clk 00:01:38] [%emt 00:00:22]} Rb7
{[%clk 00:02:22] [%emt 00:00:08]} 45. Nxf7 {[%clk 00:00:35] [%emt 00:01:33]}
Rxb6 {[%clk 00:02:21] [%emt 00:00:31]} 46. Rxb6 {[%clk 00:00:58] [%emt
00:00:08]} Kxb6 {[%clk 00:02:47] [%emt 00:00:04]} 47. f4 {[%clk 00:01:11] [%emt
00:00:16]} Ne2+ {[%clk 00:03:12] [%emt 00:00:04]} 48. Kg4 {[%clk 00:01:37] [%emt
00:00:05]} Nxf4 {[%clk 00:03:38] [%emt 00:00:04]} 1/2-1/2

[Site "Europe Echecs"]